bitfinex/quotes_ETHUSD_20241231
["timestamp","ask_amount","ask_price","bid_price","bid_amount"]
[1735668072262,0.30532971,3366.1,3365.5,2.97132]
[1735668072450,0.30532971,3366.1,3364.8,3.0]
[1735668072784,0.30532971,3366.1,3365.1,2.97165]
[1735668073188,0.55,3366.0,3365.1,2.97165]
[1735668073386,0.30532971,3366.1,3365.1,2.97165]
[1735668073590,5.25876078,3365.9,3364.8,3.0]
[1735668073788,0.55,3365.4,3364.8,3.0]
[1735668073973,0.55,3365.0,3364.8,3.0]
[1735668074385,0.55,3365.2,3364.8,3.0]
[1735668076298,1.235,3365.3,3364.8,2.97191]
[1735668077477,1.235,3365.3,3364.1,1.2923]
[1735668077675,1.235,3365.3,3364.3,3.0]
[1735668077871,1.235,3365.3,3364.2,5.94494]
[1735668077872,1.235,3365.3,3364.8,2.97192]
[1735668078100,0.55,3365.2,3364.1,4.26481]
[1735668078276,0.7285,3365.2,3364.1,4.26481]
[1735668078600,0.7285,3365.2,3364.0,2.97265]
[1735668078770,0.55,3365.0,3363.6,1.2923]
[1735668078972,1.235,3365.1,3363.7,1.2923]
[1735668079162,1.235,3365.4,3364.6,2.9721]
[1735668079791,1.235,3365.4,3365.0,2.97175]
[1735668080097,1.235,3365.4,3364.8,2.9719]
[1735668080300,1.235,3365.4,3364.6,2.97208]
[1735668081005,1.235,3365.4,3364.3,7.26464]
[1735668081162,1.235,3365.4,3364.7,2.97202]
[1735668081362,1.235,3365.4,3364.3,4.2923]
[1735668081703,1.235,3365.4,3364.8,2.97192]
[1735668083132,0.55,3365.3,3364.3,1.2923]
[1735668083282,0.55,3365.0,3363.6,1.1951]
[1735668083483,0.55,3364.8,3363.6,1.1951]
[1735668083739,0.55,3364.8,3363.8,2.97276]
[1735668083898,1.2202,3364.5,3363.5,1.24312917]
[1735668084096,0.55,3364.1,3363.5,1.24312917]
[1735668084325,1.2202,3364.2,3363.5,1.24312917]
[1735668084326,0.55,3363.9,3363.5,1.24312917]
[1735668084692,0.55,3363.7,3363.5,1.24312917]
[1735668085288,0.55,3363.7,3363.1,2.97343]
[1735668085509,0.55,3363.7,3363.0,100.0]
[1735668085792,0.55,3363.7,3363.0,102.97352]
[1735668086124,0.72702,3363.7,3363.0,102.97352]
[1735668086327,0.72702,3363.7,3363.0,100.0]
[1735668086488,0.72702,3363.7,3363.1,2.97342]
[1735668087031,0.55,3363.7,3363.1,2.97342]
[1735668088518,1.2202,3363.8,3363.3,2.97322]
[1735668089515,1.2202,3363.8,3363.1,4.2149]
[1735668089740,0.59794901,3363.9,3363.5,2.97307]
[1735668091449,1.3071,3364.1,3363.5,2.97307]
[1735668091650,1.3071,3364.1,3363.2,2.97335]
[1735668092014,1.3071,3364.6,3363.8,2.97275]
[1735668092215,0.64737608,3364.5,3363.8,2.97275]
[1735668092555,1.3071,3364.6,3363.6,3.0]
[1735668092755,1.3071,3365.1,3364.7,2.97198]
[1735668093085,1.3071,3365.1,3363.5,3.47376078]
[1735668093086,3.1253971,3365.5,3364.4,2.97222]
[1735668093352,3.1253971,3365.5,3365.2,2.97152]
[1735668094425,3.03049518,3365.8,3365.3,2.97147]
[1735668094426,1.3071,3365.8,3365.3,2.97147]
[1735668094624,1.48795091,3365.8,3365.1,2.97165]
[1735668094943,0.55,3365.7,3364.7,2.972]
[1735668095326,0.55,3365.7,3364.5,2.97218]
[1735668095530,0.55,3365.5,3364.3,2.97235]
[1735668095758,0.55,3365.5,3364.7,2.97195]
[1735668095987,0.18571,3365.4,3364.1,1.2415]
[1735668096187,0.18571,3365.4,3364.7,2.97198]
[1735668096320,0.18571,3365.4,3364.8,2.97193]
[1735668096521,0.18571,3365.4,3364.1,1.2415]
[1735668096764,1.3071,3365.6,3364.8,2.9719]
[1735668096945,1.3071,3365.6,3364.5,3.0]
[1735668097273,1.3071,3365.6,3364.5,5.97213]
[1735668097420,1.3071,3365.6,3364.9,2.97179]
[1735668097955,1.3071,3365.6,3364.5,3.0]
[1735668098158,1.3071,3365.6,3365.1,2.97167]
[1735668098339,1.3071,3365.6,3364.9,2.97184]
[1735668098744,1.3071,3365.6,3364.5,3.0]
[1735668098927,1.3071,3365.6,3364.7,2.97199]
[1735668099132,0.55,3365.5,3364.5,2.97216]
[1735668099328,0.55,3365.3,3364.6,3.0]
[1735668099625,1.3071,3366.1,3364.7,1.2415]
[1735668099870,4.27796,3366.1,3364.9,2.97184]
[1735668100071,4.27796,3366.1,3364.4,2.97229]
[1735668100072,0.55,3365.7,3364.3,1.2415]
[1735668100273,0.55,3365.4,3364.3,2.97236]
[1735668100570,3.47376078,3365.9,3363.5,4.21451]
[1735668100571,0.55,3365.0,3363.5,4.21451]
[1735668100758,0.55,3364.8,3363.9,2.9727]
[1735668100941,0.55,3364.8,3364.1,2.97255]
[1735668101271,0.55,3364.8,3364.3,2.97236]
[1735668101468,1.2911,3365.2,3363.9,2.97273]
[1735668101713,1.2911,3365.2,3364.1,2.97256]
[1735668101873,1.2911,3365.8,3364.3,1.1933]
[1735668102037,0.52662698,3365.7,3365.1,2.97167]
[1735668102375,0.52662698,3365.7,3365.4,2.97139]
[1735668102561,1.2911,3365.8,3364.7,3.0]
[1735668102759,1.8182971,3366.1,3365.8,2.97104]
[1735668103134,1.2911,3366.3,3365.8,2.97104]
[1735668103333,1.2911,3366.3,3365.8,2.82104]
[1735668103930,1.2911,3366.8,3365.8,1.1933]
[1735668104254,1.2911,3366.8,3365.8,4.1933]
[1735668104461,1.2911,3366.8,3366.5,2.97037]
[1735668104660,1.84447932,3366.8,3366.5,2.97037]
[1735668104835,1.2911,3366.8,3366.5,2.97037]
[1735668105173,1.2911,3367.2,3365.9,2.97097]
[1735668105476,1.2911,3367.2,3366.5,2.97036]
[1735668106050,1.2911,3367.2,3366.3,2.97059]
[1735668106251,0.55,3367.1,3366.0,2.97088]
[1735668106457,0.18411,3367.0,3366.3,2.97061]
[1735668107678,0.18411,3367.0,3366.0,2.97088]
[1735668107982,0.55,3367.1,3366.0,2.97088]
[1735668107983,1.2911,3367.2,3366.8,2.9701]
[1735668108279,1.2911,3367.2,3366.9,2.97006]
[1735668108582,1.2911,3367.6,3366.5,3.0]
[1735668108747,1.2911,3368.0,3367.9,2.9692]
[1735668108941,1.8182971,3368.4,3367.9,2.9692]
[1735668109147,0.54323822,3368.3,3367.5,1.1933]
[1735668109375,1.8182971,3368.4,3367.7,3.0]
[1735668109545,1.8182971,3369.0,3368.4,2.96876]
[1735668109752,1.8182971,3369.0,3368.7,2.96842]
[1735668110921,1.2911,3369.4,3368.7,2.96842]
[1735668111345,1.2911,3369.4,3367.9,4.66706078]
[1735668111346,1.2911,3369.4,3368.8,2.96841]
[1735668111991,1.2911,3369.4,3368.9,2.96832]
[1735668112159,1.2911,3369.9,3368.7,2.96845]
[1735668112487,3.47376078,3370.3,3369.7,2.96757]
[1735668112488,1.2911,3370.3,3369.7,2.96757]
[1735668112710,1.2911,3370.3,3368.8,3.0]
[1735668112929,1.2911,3370.3,3369.1,3.0]
[1735668113097,1.2911,3370.3,3368.8,3.0]
[1735668113722,1.2911,3370.3,3369.6,2.96766]
[1735668114033,1.2911,3370.3,3369.3,5.96797]
[1735668114320,1.2911,3370.3,3369.6,2.96766]
[1735668115179,1.2911,3370.8,3370.0,2.96735]
[1735668115380,0.44460878,3370.7,3370.0,2.96735]
[1735668115703,1.2911,3370.8,3370.0,2.96731]
[1735668116204,1.2911,3370.8,3369.8,2.9675]
[1735668116205,0.55,3370.7,3369.8,2.9675]
[1735668116740,0.55,3370.7,3369.5,3.0]
[1735668116913,0.55,3370.7,3369.8,3.0]
[1735668117906,0.55,3370.7,3369.1,3.47376078]
[1735668117907,1.2308,3370.4,3368.8,1.2093]
[1735668118064,0.55,3370.2,3368.8,1.2093]
[1735668118269,4.74817,3370.0,3368.6,2.96854]
[1735668118581,4.74817,3370.0,3368.3,1.2093]
[1735668118582,1.2308,3370.0,3369.1,2.96813]
[1735668119200,1.2308,3370.0,3369.3,2.96791]
[1735668119413,1.2308,3370.0,3368.4,3.0]
[1735668119600,0.55,3369.9,3368.5,2.96859]
[1735668119907,0.55,3369.9,3368.3,1.2093]
[1735668119908,0.55,3369.7,3368.6,2.96858]
[1735668120298,0.55,3369.7,3368.3,1.2093]
[1735668120607,0.55,3369.7,3368.4,2.96876]
[1735668121016,0.55,3369.7,3368.8,2.96841]
[1735668121714,0.55,3369.7,3368.5,2.96861]
[1735668122031,0.55,3369.5,3367.6,7.17877]
[1735668122312,1.2308,3369.4,3368.6,2.96858]
[1735668123002,1.2308,3369.4,3368.1,3.0]
[1735668123171,6.44086078,3370.3,3367.6,4.17877]
[1735668123172,6.44051078,3370.7,3369.3,2.96789]
[1735668123378,1.2308,3370.0,3369.1,2.9681]
[1735668123569,0.18213076,3369.9,3369.1,2.9681]
[1735668123925,0.55,3369.8,3368.4,1.2093]
[1735668124130,0.55,3369.6,3368.0,4.2093]
[1735668124389,0.55,3369.6,3368.5,2.96867]
[1735668125120,0.55,3369.4,3368.5,2.96867]
[1735668125317,0.17808,3369.3,3368.5,2.96867]
[1735668125885,0.55,3369.2,3368.2,2.96886]
[1735668126161,0.17808,3369.3,3367.5,3.47376078]
[1735668126162,1.2308,3369.1,3367.5,3.47376078]
[1735668126361,1.2308,3369.1,3367.6,4.2093]
[1735668126566,1.2308,3369.1,3368.5,2.9686]
[1735668126738,1.2308,3369.1,3368.6,2.96856]
[1735668126936,1.2308,3369.1,3368.8,2.96835]
[1735668127150,1.43226736,3369.1,3368.8,2.96835]
[1735668127822,1.43226736,3369.1,3368.4,2.96876]
[1735668128024,1.43226736,3369.1,3368.4,2.96875]
[1735668128257,1.2308,3369.8,3368.1,2.96903]
[1735668128441,1.2308,3369.8,3368.9,1.2093]
[1735668128773,7.19763,3370.6,3369.5,2.96776]
[1735668128926,0.55,3370.4,3369.5,2.96776]
[1735668129121,1.2308,3370.5,3368.9,1.2093]
[1735668129350,0.47045608,3370.4,3369.8,2.96748]
[1735668129959,0.47045608,3370.4,3369.3,3.0]
[1735668130231,1.2308,3370.5,3369.3,3.0]
[1735668130563,1.2308,3370.5,3370.0,2.96732]
[1735668131161,1.2308,3370.5,3369.4,2.96788]
[1735668131359,1.2587,3371.1,3370.0,3.0]
[1735668131568,0.1675165,3371.2,3370.4,5.934]
[1735668131727,0.1675165,3371.2,3370.4,3.0]
[1735668132067,0.1675165,3371.2,3371.1,2.96639]
[1735668132239,0.1675165,3371.2,3370.4,3.0]
[1735668132240,0.1675165,3371.2,3370.8,2.96657]
[1735668132443,0.1675165,3371.2,3369.8,6.44124078]
[1735668132444,0.1675165,3371.2,3370.5,2.96689]
[1735668132664,1.2587,3371.1,3370.0,2.96734]
[1735668132840,0.98924565,3371.0,3369.6,2.9677]
[1735668133039,1.2587,3370.9,3369.5,3.0]
[1735668133425,1.2587,3370.9,3369.8,2.96753]
[1735668133631,0.55,3370.8,3369.5,2.96772]
[1735668133928,1.2587,3370.5,3369.3,1.2051]
[1735668134128,1.2587,3370.5,3369.6,2.96769]
[1735668136692,1.2587,3371.1,3370.5,2.96685]
[1735668136883,1.2587,3371.1,3370.2,3.0]
[1735668137075,0.1675165,3371.2,3370.2,3.0]
[1735668137270,0.1675165,3371.2,3370.8,2.96656]
[1735668137884,0.1675165,3371.2,3370.2,3.0]
[1735668138182,0.1675165,3371.2,3370.3,2.96708]
[1735668138385,0.1675165,3371.2,3369.8,1.2051]
[1735668138583,0.1675165,3371.2,3370.4,2.96692]
[1735668138952,0.1675165,3371.2,3369.8,1.2051]
[1735668139155,0.60674415,3371.2,3370.3,2.96707]
[1735668139674,1.2587,3370.8,3369.4,4.17295]
[1735668139842,0.55,3370.7,3369.8,2.96752]
[1735668140045,0.55,3370.7,3369.9,2.96742]
[1735668140283,0.55,3370.7,3369.4,4.2051]
[1735668140657,0.55,3370.7,3369.7,2.96753]
[1735668140863,0.55,3370.7,3369.4,4.2051]
[1735668140864,0.18087,3370.6,3369.8,2.96751]
[1735668141279,0.18087,3370.6,3369.8,2.96745]
[1735668142410,0.55,3370.5,3369.4,1.2051]
[1735668142593,1.2587,3370.4,3369.7,2.96759]
[1735668142789,1.457657,3370.4,3369.7,2.96759]
[1735668143095,1.457657,3370.4,3369.5,2.96779]
[1735668143292,0.55,3370.3,3369.0,1.2051]
[1735668143516,0.55,3370.3,3369.5,2.96779]
[1735668144352,0.55,3370.3,3369.1,2.96815]
[1735668144589,0.733957,3370.3,3369.4,2.96788]
[1735668145348,0.733957,3370.3,3368.4,1.2051]
[1735668145689,0.18087,3370.6,3369.2,2.96804]
[1735668145690,3.51694,3370.5,3369.2,2.96804]
[1735668146052,0.18087,3370.6,3369.0,2.96822]
[1735668146290,0.55,3370.0,3368.5,2.9686]
[1735668146598,0.55,3370.0,3368.7,3.0]
[1735668146771,1.2587,3370.1,3369.4,2.96788]
[1735668146984,1.1720695,3370.1,3369.4,2.96788]
[1735668148292,1.1720695,3370.1,3369.5,2.96779]
[1735668149034,1.1720695,3370.1,3369.5,2.96778]
[1735668149235,1.1720695,3370.1,3369.6,2.96769]
[1735668149528,1.1720695,3370.1,3369.8,2.96752]
[1735668149730,1.1720695,3370.1,3369.6,2.96767]
[1735668149873,1.1720695,3370.1,3369.4,2.96788]
[1735668150780,0.55,3370.0,3368.8,4.162]
[1735668151110,0.17220695,3369.9,3369.2,2.96804]
[1735668151312,0.55,3369.8,3369.0,2.96821]
[1735668151637,0.55,3369.8,3369.1,2.96811]
[1735668151939,0.55,3369.8,3368.8,1.1936]
[1735668152152,0.55,3369.8,3368.9,2.96832]
[1735668152434,1.76363756,3370.1,3369.5,2.96771]
[1735668152578,1.94000132,3370.1,3369.5,2.96771]
[1735668153085,1.94000132,3370.1,3369.6,2.96769]
[1735668153296,1.94000132,3370.1,3369.4,2.96787]
[1735668153730,1.94000132,3370.1,3369.5,2.96775]
[1735668154476,1.94000132,3370.1,3368.8,1.1936]
[1735668154477,1.76363756,3370.1,3368.8,1.1936]
[1735668154636,1.76363756,3370.1,3369.8,2.96749]
[1735668155045,1.76363756,3370.1,3369.5,2.96774]
[1735668155569,0.55,3370.0,3369.1,2.96808]
[1735668155728,0.55,3369.8,3368.8,2.96834]
[1735668155910,0.55,3369.8,3368.9,2.96825]
[1735668156108,0.17636376,3370.0,3368.7,1.22301661]
[1735668156109,0.55,3369.4,3368.7,1.22301661]
[1735668156512,1.1893,3369.3,3368.5,2.96866]
[1735668156864,1.660002,3369.3,3368.4,1.22301661]
[1735668157044,1.1893,3369.3,3368.6,2.96851]
[1735668157528,1.1893,3369.3,3368.4,1.22301661]
[1735668157872,1.1893,3369.3,3368.7,2.96848]
[1735668158371,1.1893,3369.3,3368.5,2.96864]
[1735668158669,0.55,3369.2,3368.3,2.96882]
[1735668158870,0.55,3369.2,3368.0,1.54234102]
[1735668158871,1.1893,3368.8,3368.0,1.54234102]
[1735668159170,0.55,3368.5,3368.0,1.54234102]
[1735668159366,1.1893,3368.4,3367.7,1.22301661]
[1735668160055,0.55,3368.3,3367.7,1.22301661]
[1735668160215,1.1893,3368.4,3367.8,2.96926]
[1735668161456,0.60171817,3368.1,3367.8,2.96926]
[1735668161629,0.60171817,3368.1,3367.5,2.96955]
[1735668161825,0.60171817,3368.1,3367.1,4.16425]
[1735668161826,0.60171817,3368.1,3367.1,1.1944]
[1735668162030,0.60171817,3368.1,3367.6,2.96943]
[1735668162232,0.78081999,3368.1,3367.6,2.96943]
[1735668162631,0.78081999,3368.1,3367.7,2.96936]
[1735668163031,0.60171817,3368.1,3367.7,2.96936]
[1735668163231,0.60171817,3368.1,3367.8,2.96929]
[1735668163643,0.60171817,3368.1,3367.4,2.96959]
[1735668163845,0.60171817,3368.1,3367.5,2.96954]
[1735668164025,1.2154,3368.0,3367.7,2.96936]
[1735668166036,1.2154,3368.0,3366.8,5.9701]
[1735668166352,1.2154,3368.0,3367.6,2.96941]
[1735668166746,1.39711182,3368.0,3367.1,2.96991]
[1735668166937,1.39711182,3368.0,3367.6,2.9694]
[1735668167138,1.2154,3368.0,3367.6,2.9694]
[1735668167860,1.2154,3368.0,3367.2,2.96975]
[1735668168565,1.2154,3368.0,3367.4,2.96956]
[1735668168767,1.2154,3368.0,3367.5,2.96948]
[1735668169264,1.2154,3368.0,3366.7,6.46093984]
[1735668169515,1.2154,3368.0,3367.8,2.96925]
[1735668169664,1.2154,3368.0,3367.9,2.9692]
[1735668170562,0.60171817,3368.1,3367.9,2.96912]
[1735668171180,0.60171817,3368.1,3367.9,2.96913]
[1735668171586,0.60171817,3368.1,3368.0,2.96912]
[1735668171879,0.60171817,3368.1,3367.2,4.22216]
[1735668172087,0.60171817,3368.1,3368.0,2.96912]
[1735668172383,1.2154,3368.5,3368.1,2.96902]
[1735668172583,1.2154,3369.1,3369.0,2.96823]
[1735668172791,0.59323521,3369.3,3369.1,2.96811]
[1735668172963,0.59323521,3369.3,3368.0,4.2524]
[1735668173282,1.2154,3369.8,3369.5,2.96778]
[1735668173484,0.60036316,3369.6,3369.5,2.96778]
[1735668173687,0.60036316,3369.6,3369.3,2.9679]
[1735668173855,0.60036316,3369.6,3369.4,2.96784]
[1735668174057,1.2154,3369.8,3369.4,2.96784]
[1735668174384,1.2154,3369.8,3369.0,2.9682]
[1735668174559,1.2154,3369.8,3369.7,2.96762]
[1735668174885,1.2154,3369.8,3369.2,2.96798]
[1735668175086,1.2154,3369.8,3368.8,1.2524]
[1735668175287,0.5853005,3369.9,3369.8,2.96753]
[1735668175464,1.2154,3370.1,3369.9,2.96741]
[1735668176091,1.191,3370.7,3370.0,2.96735]
[1735668176248,0.53321431,3370.6,3370.0,2.96735]
[1735668177249,1.191,3370.9,3369.7,2.96762]
[1735668177487,0.58666983,3370.8,3369.7,2.96762]
[1735668177786,1.191,3370.9,3369.5,1.2861]
[1735668177992,1.191,3370.9,3370.6,2.96679]
[1735668178191,1.191,3370.9,3369.5,1.2861]
[1735668178497,1.191,3370.9,3370.7,2.96666]
[1735668178947,0.1675165,3371.2,3370.2,4.2532]
[1735668179147,0.1675165,3371.2,3370.8,2.96656]
[1735668179786,0.1675165,3371.2,3370.2,1.2861]
[1735668180090,0.36143977,3371.2,3370.3,2.96706]
[1735668180242,1.191,3371.0,3370.0,2.96729]
[1735668180443,1.191,3371.0,3370.1,2.96718]
[1735668180672,0.21024398,3370.9,3370.3,2.96707]
[1735668180989,1.191,3371.0,3369.8,1.2861]
[1735668181146,1.191,3371.0,3370.4,2.96693]
[1735668181648,1.191,3371.0,3370.9,2.96656]
[1735668181843,0.1675165,3371.2,3371.0,2.9664]
[1735668182047,0.1675165,3371.2,3370.8,2.96662]
[1735668182289,0.1675165,3371.2,3370.6,1.2861]
[1735668182591,0.1675165,3371.2,3370.8,2.96664]
[1735668182592,0.36143977,3371.2,3370.8,2.96664]
[1735668182797,0.1675165,3371.2,3370.5,2.96683]
[1735668183018,0.1675165,3371.2,3370.1,1.2861]
[1735668183019,0.1675165,3371.2,3370.3,2.96708]
[1735668183152,0.1675165,3371.2,3369.3,3.46093984]
[1735668183153,1.2154,3370.7,3369.4,1.2131]
[1735668183371,1.2154,3370.7,3369.9,2.96743]
[1735668183795,0.55,3370.6,3369.7,2.96761]
[1735668184010,0.17654,3370.5,3369.8,2.96751]
[1735668184371,0.17654,3370.5,3369.8,2.96746]
[1735668184577,1.2154,3370.7,3369.4,1.2131]
[1735668184777,1.2154,3370.7,3369.9,2.96739]
[1735668184970,0.59504898,3370.6,3369.7,2.96754]
[1735668185171,0.59504898,3370.6,3369.4,1.2131]
[1735668185513,0.7964,3370.5,3369.4,1.2131]
[1735668185696,0.7964,3370.5,3369.8,2.96752]
[1735668185905,0.7964,3370.5,3369.4,1.2131]
[1735668186212,0.7964,3370.5,3368.8,3.0]
[1735668186213,2.9671,3370.3,3368.9,2.96832]
[1735668186515,0.7964,3370.1,3369.2,2.96797]
[1735668186812,0.7964,3370.1,3369.3,2.96793]
[1735668187114,0.7964,3370.1,3369.4,2.96786]
[1735668188281,6.42783984,3370.6,3368.8,1.2131]
[1735668188282,0.1675165,3371.2,3370.0,2.96735]
[1735668188622,0.7964,3370.6,3370.2,2.9671]
[1735668188783,0.7964,3370.6,3369.3,1.2131]
[1735668189106,0.7964,3370.6,3369.9,2.96744]
[1735668189560,0.7964,3370.6,3370.0,2.96734]
[1735668190176,0.7964,3370.6,3369.7,2.96756]
[1735668190432,0.7964,3370.6,3369.8,2.9675]
[1735668191306,0.7964,3370.6,3369.3,1.2131]
[1735668191549,0.7964,3370.6,3369.9,2.96743]
[1735668191982,0.7964,3370.6,3369.8,2.96748]
[1735668192434,0.55,3370.5,3369.5,2.96773]
[1735668192642,0.55,3370.3,3369.3,2.96794]
[1735668192933,0.7964,3370.1,3369.3,2.96796]
[1735668193517,0.7964,3370.1,3369.4,2.96788]
[1735668193721,0.7964,3370.1,3369.0,4.1317]
[1735668193722,0.7964,3370.1,3369.2,2.96805]
[1735668194086,0.7964,3370.1,3369.4,2.96786]
[1735668194322,0.60837995,3370.0,3369.4,2.96786]
[1735668194687,0.7964,3370.1,3369.5,2.96779]
[1735668195323,1.37751753,3370.1,3369.2,2.96806]
[1735668195523,0.7964,3370.1,3369.7,2.96762]
[1735668196346,0.7964,3370.1,3369.2,2.96806]
[1735668196845,0.7964,3370.6,3370.3,2.96702]
[1735668197153,0.60485969,3370.9,3370.1,2.96725]
[1735668197286,0.7964,3370.8,3369.7,2.96761]
[1735668197491,0.7964,3370.6,3369.1,1.1317]
[1735668197691,0.7964,3370.4,3369.1,1.1317]
[1735668198187,0.55,3370.1,3368.7,3.0]
[1735668198386,0.55,3370.1,3369.0,2.96817]
[1735668198387,0.7964,3370.0,3369.0,2.96817]
[1735668199753,1.94334564,3369.7,3368.5,2.96859]
[1735668199919,0.55,3369.5,3368.6,2.9685]
[1735668200752,0.55,3369.5,3368.7,2.96848]
[1735668201314,0.55,3369.5,3368.1,1.1317]
[1735668201662,0.7964,3369.4,3368.6,2.96855]
[1735668202174,0.7964,3369.4,3368.3,2.96881]
[1735668202453,0.7964,3369.2,3368.3,2.96881]
[1735668202627,0.55,3368.9,3367.9,2.96918]
[1735668202962,0.55,3368.9,3367.2,3.46093984]
[1735668202963,0.55,3368.5,3367.2,4.10144]
[1735668203152,0.55,3368.5,3367.2,4.10149]
[1735668203366,0.55,3368.3,3367.0,2.96996]
[1735668203583,0.55,3368.1,3367.0,2.96996]
[1735668203881,0.7964,3368.0,3367.0,2.96996]
[1735668204083,0.7964,3368.0,3367.1,2.96983]
[1735668204393,0.7964,3368.0,3366.8,1.22301661]
[1735668204394,0.7964,3368.0,3367.2,2.9698]
[1735668204700,0.7964,3368.0,3367.4,2.96961]
[1735668204885,0.7964,3368.0,3367.2,2.96979]
[1735668205030,0.55,3367.7,3366.7,2.97025]
[1735668205233,0.7964,3367.5,3366.7,2.97025]
[1735668205430,0.55,3367.4,3366.5,2.97043]
[1735668205667,0.55,3367.4,3366.6,2.97035]
[1735668205966,0.7964,3367.5,3366.2,3.0]
[1735668206176,0.7964,3367.5,3366.9,2.97007]
[1735668206329,1.3680286,3369.0,3366.4,3.46093984]
[1735668206330,0.7964,3368.3,3366.4,3.46093984]
[1735668206531,0.7964,3368.3,3366.7,3.0]
[1735668206730,0.7964,3368.3,3366.9,4.0687]
[1735668206946,0.7964,3368.3,3367.8,2.96921]
[1735668207805,0.7964,3368.3,3367.7,2.96935]
[1735668208005,0.7964,3368.3,3367.8,2.96923]
[1735668208606,0.7964,3368.3,3367.5,2.96947]
[1735668208762,0.7964,3368.3,3367.1,2.96984]
[1735668208955,0.7964,3368.3,3367.6,2.96945]
[1735668209692,0.7964,3368.3,3367.3,2.96967]
[1735668209850,0.55,3368.1,3366.8,2.97009]
[1735668210055,0.7964,3368.0,3366.5,4.0687]
[1735668210254,0.7964,3368.0,3367.4,2.96958]
[1735668210456,0.7964,3368.0,3366.7,3.0]
[1735668210691,0.7964,3368.0,3367.5,2.96951]
[1735668210901,0.95465721,3368.0,3367.5,2.96951]
[1735668211104,0.95465721,3368.0,3366.9,3.0]
[1735668211395,0.7964,3368.0,3367.7,2.96935]
[1735668211904,0.7964,3368.0,3367.3,2.96966]
[1735668212070,0.55,3367.9,3366.7,1.0687]
[1735668212272,0.55,3367.7,3366.0,4.03958]
[1735668212603,1.203333,3367.6,3366.0,1.0687]
[1735668212895,0.7964,3367.6,3366.6,2.97027]
[1735668213094,0.7964,3367.4,3366.6,2.97027]
[1735668213295,0.7964,3367.2,3366.0,1.0687]
[1735668213485,0.7964,3367.2,3366.2,2.97069]
[1735668213689,0.55,3367.1,3366.0,2.97085]
[1735668213859,1.27713398,3367.0,3366.0,2.97085]
[1735668214058,1.27713398,3367.0,3365.6,1.0687]
[1735668214313,1.27713398,3367.0,3366.1,2.97077]
[1735668215309,0.55,3366.9,3365.8,2.97101]
[1735668215545,0.6902,3366.8,3365.6,1.0687]
[1735668215759,0.1720934,3366.7,3366.0,2.97088]
[1735668215919,0.1720934,3366.7,3366.2,2.97067]
[1735668216121,0.6902,3366.8,3365.7,2.97115]
[1735668216346,0.60222237,3367.1,3365.9,2.97097]
[1735668216555,0.60222237,3367.1,3366.6,2.97032]
[1735668217250,0.60222237,3367.1,3366.4,2.9705]
[1735668217550,4.01093984,3366.9,3365.0,2.97172]
[1735668217746,0.55,3366.7,3365.2,1.0687]
[1735668217950,1.15151622,3366.8,3365.3,2.9715]
[1735668218253,0.55,3366.7,3365.9,2.97096]
[1735668218452,0.55,3366.7,3365.2,4.0687]
[1735668218669,0.55,3366.7,3366.1,2.97078]
[1735668219125,0.6902,3366.8,3365.2,4.0687]
[1735668219327,0.6902,3366.8,3366.2,2.97067]
[1735668219544,0.6902,3366.8,3366.3,2.97054]
[1735668219784,0.6902,3366.8,3366.4,2.97053]
[1735668219932,3.0,3367.7,3365.1,3.46093984]
[1735668219933,0.6902,3367.5,3366.1,2.97072]
[1735668220130,1.2715801,3367.5,3366.6,2.97027]
[1735668220327,1.2715801,3367.5,3366.3,2.97056]
[1735668220528,0.6902,3367.1,3365.7,1.0687]
[1735668220965,0.55,3367.0,3365.7,1.0687]
[1735668221164,0.55,3367.0,3366.1,2.97072]
[1735668221357,0.55,3366.8,3365.5,2.97132]
[1735668221559,0.17902,3366.7,3365.9,2.97092]
[1735668221725,0.54134172,3367.0,3365.9,2.97092]
[1735668221931,0.6902,3366.9,3365.9,2.97092]
[1735668222126,0.6902,3366.9,3366.0,2.97086]
[1735668222654,0.6902,3366.9,3366.1,2.97076]
[1735668223273,0.6902,3366.9,3365.9,2.97094]
[1735668223572,0.6902,3366.9,3366.0,2.97084]
[1735668223893,0.6902,3366.9,3365.6,2.97123]
[1735668223894,0.97620025,3366.8,3366.1,2.97079]
[1735668224166,0.55,3366.7,3366.3,2.9706]
[1735668225193,0.55,3366.7,3366.0,2.97083]
[1735668225470,0.6902,3366.6,3366.0,2.97083]
[1735668225631,0.55,3366.5,3365.0,1.1218]
[1735668225825,0.22164003,3366.5,3366.1,2.97079]
[1735668226032,0.22164003,3366.5,3365.1,2.97167]
[1735668226262,0.6902,3366.6,3365.7,2.97111]
[1735668226464,0.6902,3366.6,3365.6,1.1218]
[1735668226655,0.6902,3366.6,3366.5,2.97044]
[1735668227251,0.6902,3366.6,3366.3,2.97059]
[1735668228030,0.6902,3366.6,3365.9,2.97091]
[1735668228268,0.6902,3366.6,3366.3,2.9706]
[1735668228771,0.6902,3366.6,3366.0,2.97088]
[1735668229271,0.6902,3366.6,3366.4,2.97051]
[1735668229574,0.6902,3366.6,3366.3,2.97054]
[1735668230149,0.6902,3366.6,3366.4,2.9705]
[1735668230686,0.6902,3366.6,3366.5,2.97044]
[1735668230884,0.61018725,3366.8,3365.6,1.1218]
[1735668231182,0.61018725,3366.8,3366.7,2.97026]